bitfinex/quotes_BTCUSD_20250110
["timestamp","ask_amount","ask_price","bid_price","bid_amount"]
[1736540885250,0.210585,94974.0,94964.0,1.5]
[1736540885501,0.210601,94967.0,94964.0,1.5]
[1736540885704,0.421202,94967.0,94964.0,1.501]
[1736540885909,0.00323986,94966.0,94964.0,1.501]
[1736540886082,0.210603,94965.0,94950.0,0.210636]
[1736540886289,0.00323862,94964.0,94943.0,0.05947704]
[1736540886499,0.00323862,94964.0,94946.0,0.02160975]
[1736540886830,0.00323862,94964.0,94962.0,0.0782]
[1736540887034,0.00323862,94964.0,94963.0,0.31596068]
[1736540887237,0.006,94967.0,94964.0,0.210605]
[1736540887403,0.006,94967.0,94966.0,1.710601]
[1736540887608,0.006,94967.0,94966.0,1.81490076]
[1736540887813,0.0001708,94980.0,94973.0,0.210584]
[1736540888013,0.0001708,94980.0,94974.0,0.210583]
[1736540888215,0.00346149,94979.0,94974.0,0.210583]
[1736540888378,0.0001708,94980.0,94974.0,0.2527012]
[1736540889303,0.0001708,94980.0,94979.0,0.0782]
[1736540889495,0.0001708,94980.0,94979.0,0.23129976]
[1736540889642,0.0001708,94980.0,94979.0,1.73129976]
[1736540890899,0.0001708,94980.0,94979.0,1.73329976]
[1736540891108,0.0071708,94980.0,94979.0,1.8479251]
[1736540891509,0.0001708,94980.0,94979.0,1.85580577]
[1736540891958,0.0001708,94980.0,94979.0,1.85380577]
[1736540892586,0.0001708,94980.0,94979.0,1.85680577]
[1736540893736,0.0001708,94980.0,94979.0,1.85880577]
[1736540894204,0.0001708,94980.0,94979.0,1.85680577]
[1736540894412,0.0001708,94980.0,94979.0,1.85380577]
[1736540894583,0.0001708,94980.0,94979.0,1.85580577]
[1736540894790,0.0001708,94980.0,94979.0,1.85980577]
[1736540894991,0.0001708,94980.0,94979.0,1.85380577]
[1736540895292,0.0011708,94980.0,94979.0,1.86080577]
[1736540895524,0.0011708,94980.0,94979.0,1.81200577]
[1736540895705,0.0001708,94980.0,94979.0,1.80500577]
[1736540896572,0.0011708,94980.0,94979.0,1.80700577]
[1736540897122,0.0001708,94980.0,94979.0,1.80500577]
[1736540897540,0.0001708,94980.0,94979.0,1.80700577]
[1736540897959,0.0001708,94980.0,94979.0,1.80500577]
[1736540898155,0.0001708,94980.0,94979.0,1.80700577]
[1736540898497,0.0011708,94980.0,94979.0,1.81400577]
[1736540898830,0.0011708,94980.0,94979.0,1.51688067]
[1736540899029,0.0011708,94980.0,94979.0,0.01688067]
[1736540899633,0.0011708,94980.0,94979.0,1.51688067]
[1736540900279,0.0001708,94980.0,94979.0,1.50788067]
[1736540900487,0.0011708,94980.0,94979.0,1.50988067]
[1736540901060,0.0001708,94980.0,94979.0,1.50788067]
[1736540901261,0.0011708,94980.0,94979.0,1.50788067]
[1736540901770,0.0081708,94980.0,94979.0,1.501]
[1736540901971,0.0001708,94980.0,94979.0,1.5]
[1736540902373,0.2107408,94980.0,94979.0,1.5]
[1736540902826,0.0001708,94980.0,94979.0,1.5]
[1736540903028,0.00364312,94980.0,94979.0,1.5]
[1736540903343,0.0031708,94980.0,94979.0,1.5]
[1736540904041,0.0031708,94980.0,94979.0,1.70859952]
[1736540904596,0.0041708,94980.0,94979.0,1.60429976]
[1736540904795,0.0011708,94980.0,94979.0,1.5]
[1736540904998,0.0001708,94980.0,94979.0,1.5]
[1736540906145,0.0001708,94980.0,94979.0,1.501]
[1736540906794,0.0071708,94980.0,94979.0,1.502]
[1736540907398,0.0071708,94980.0,94979.0,1.501]
[1736540907800,0.0001708,94980.0,94979.0,1.5]
[1736540908018,0.0031708,94980.0,94979.0,1.5]
[1736540908421,0.0001708,94980.0,94979.0,1.5]
[1736540908624,0.00766572,94980.0,94979.0,1.5]
[1736540910055,0.00366572,94980.0,94979.0,1.5]
[1736540910472,0.00666572,94980.0,94979.0,1.5]
[1736540910674,0.00366572,94980.0,94979.0,1.5]
[1736540911082,0.00766572,94980.0,94979.0,1.5]
[1736540911314,0.00366572,94980.0,94979.0,1.5]
[1736540911496,0.00566572,94980.0,94979.0,1.5]
[1736540911639,0.01366572,94980.0,94979.0,1.501]
[1736540911846,0.00566572,94980.0,94979.0,1.60429976]
[1736540912058,0.0001708,94980.0,94979.0,1.60429976]
[1736540912256,0.0021708,94980.0,94979.0,1.60429976]
[1736540913773,0.0001708,94980.0,94979.0,1.60429976]
[1736540914006,0.0081708,94980.0,94979.0,1.70959952]
[1736540914202,0.0001708,94980.0,94979.0,1.70959952]
[1736540914422,0.0001708,94980.0,94979.0,1.71747608]
[1736540914611,0.0021708,94980.0,94979.0,1.71747608]
[1736540914906,0.0021708,94980.0,94979.0,1.71647608]
[1736540915107,0.0031708,94980.0,94979.0,1.71647608]
[1736540915530,0.0011708,94980.0,94979.0,1.71647608]
[1736540915744,0.0001708,94980.0,94979.0,1.71647608]
[1736540916168,0.0001708,94980.0,94979.0,1.79837608]
[1736540916938,0.0061708,94980.0,94979.0,1.80237608]
[1736540917384,0.0001708,94980.0,94979.0,1.80137608]
[1736540917559,0.0001708,95005.0,95004.0,0.210517]
[1736540917896,0.0001708,95005.0,95004.0,0.2315687]
[1736540918669,0.0001708,95005.0,95004.0,1.7315687]
[1736540920376,0.0021708,95005.0,95004.0,1.7325687]
[1736540921196,0.0021708,95005.0,95004.0,1.83686846]
[1736540921627,0.0021708,95005.0,95004.0,2.22095073]
[1736540923240,0.0021708,95005.0,95004.0,2.22881892]
[1736540923975,0.0021708,95005.0,95004.0,2.22781892]
[1736540924178,0.0021708,95005.0,95004.0,2.23081892]
[1736540924434,0.0021708,95005.0,95004.0,2.23781892]
[1736540924435,0.0031708,95005.0,95004.0,2.23781892]
[1736540924844,0.0001708,95005.0,95004.0,2.22781892]
[1736540925022,0.0001708,95005.0,95004.0,2.23181892]
[1736540925633,0.0001708,95005.0,95004.0,2.13181892]
[1736540925840,0.0001708,95005.0,95004.0,1.85831892]
[1736540926430,0.0001708,95005.0,95004.0,1.85431892]
[1736540927467,0.0011708,95005.0,95004.0,1.86231892]
[1736540927667,0.0011708,95005.0,95004.0,1.86631892]
[1736540927922,0.0001708,95005.0,95004.0,1.85045073]
[1736540928121,0.0001708,95005.0,95004.0,1.85245073]
[1736540928374,0.0001708,95005.0,95004.0,1.84845073]
[1736540929157,0.0001708,95005.0,95004.0,1.84645073]
[1736540929387,0.0001708,95005.0,95004.0,1.84945073]
[1736540930447,0.0001708,95005.0,95004.0,1.85730409]
[1736540930663,0.0001708,95005.0,95004.0,1.85630409]
[1736540931075,0.0001708,95005.0,95004.0,1.85830409]
[1736540931432,0.0001708,95005.0,95004.0,1.85630409]
[1736540931596,0.0001708,95005.0,95004.0,1.85930409]
[1736540931803,0.0001708,95005.0,95004.0,1.85730409]
[1736540932008,0.0001708,95005.0,95004.0,1.85430409]
[1736540932209,0.0001708,95005.0,95004.0,1.85730409]
[1736540932525,0.0001708,95005.0,95004.0,1.86230409]
[1736540932761,0.0001708,95005.0,95004.0,1.85430409]
[1736540934097,0.0001708,95005.0,95004.0,1.86230409]
[1736540934469,0.0001708,95005.0,95004.0,1.85430409]
[1736540934679,0.0001708,95005.0,95004.0,1.85730409]
[1736540936063,0.0001708,95005.0,95004.0,1.86130409]
[1736540937308,0.0001708,95005.0,95004.0,1.85430409]
[1736540937670,0.0001708,95005.0,95004.0,1.86130409]
[1736540938087,0.0001708,95005.0,95004.0,1.85730409]
[1736540938270,0.0001708,95005.0,95004.0,1.85430409]
[1736540938473,0.0001708,95005.0,95004.0,1.84572182]
[1736540938668,0.0001708,95005.0,95004.0,1.84972182]
[1736540938892,0.0001708,95005.0,95004.0,1.84572182]
[1736540939091,0.0001708,95005.0,95004.0,1.84372182]
[1736540939293,0.0001708,95005.0,95004.0,1.83586846]
[1736540940478,0.0001708,95005.0,95004.0,1.83686846]
[1736540940886,0.0001708,95005.0,95004.0,1.83586846]
[1736540941126,0.0001708,95005.0,95004.0,1.83686846]
[1736540941327,0.0001708,95005.0,95004.0,1.83886846]
[1736540941500,0.0001708,95005.0,95004.0,1.83590846]
[1736540941762,0.0001708,95005.0,95004.0,1.83690846]
[1736540942170,0.0001708,95005.0,95004.0,1.84377958]
[1736540942338,0.0001708,95005.0,95004.0,1.84677958]
[1736540943106,0.0001708,95005.0,95004.0,1.84377958]
[1736540943526,0.0001708,95005.0,95004.0,1.84177958]
[1736540943907,0.0001708,95005.0,95004.0,1.84277958]
[1736540944311,0.0001708,95005.0,95004.0,1.84177958]
[1736540944689,0.0001708,95005.0,95004.0,1.84377958]
[1736540945269,0.0001708,95005.0,95004.0,1.84177958]
[1736540945491,0.0001708,95005.0,95004.0,1.92477958]
[1736540945691,0.0001708,95005.0,95004.0,2.07477958]
[1736540945811,0.0001708,95005.0,95004.0,2.07777958]
[1736540946015,0.0001708,95005.0,95004.0,2.12087958]
[1736540946226,0.0001708,95005.0,95004.0,2.22087958]
[1736540946501,0.0026508,95005.0,95004.0,2.22487958]
[1736540946630,0.0026508,95005.0,95004.0,2.22087958]
[1736540946840,0.0026508,95005.0,95004.0,2.21787958]
[1736540947174,0.0036508,95005.0,95004.0,2.22887958]
[1736540947388,0.0026508,95005.0,95004.0,2.22087958]
[1736540947588,0.0026508,95005.0,95004.0,2.11787958]
[1736540948117,0.0026508,95005.0,95004.0,2.22187958]
[1736540948548,0.0026508,95005.0,95004.0,2.21787958]
[1736540948872,0.0036508,95005.0,95004.0,2.22187958]
[1736540949055,0.0046508,95005.0,95004.0,2.22887958]
[1736540950029,0.0036508,95005.0,95004.0,2.22187958]
[1736540950448,0.0036508,95005.0,95004.0,2.25471446]
[1736540950760,0.0036508,95005.0,95004.0,2.25871446]
[1736540950921,0.0036508,95005.0,95004.0,2.22587958]
[1736540951327,0.0036508,95005.0,95004.0,2.2627199]
[1736540953179,0.0036508,95005.0,95004.0,1.83272788]
[1736540954379,0.0026508,95005.0,95004.0,1.82072788]
[1736540954580,0.0026508,95005.0,95004.0,1.50887112]
[1736540954814,0.0026508,95005.0,95004.0,1.50987112]
[1736540955013,0.0026508,95005.0,95004.0,1.50887112]
[1736540956240,0.0026508,95005.0,95004.0,1.61217088]
[1736540956448,0.0026508,95005.0,95004.0,1.61417088]
[1736540956601,0.0026508,95005.0,95004.0,1.61617088]
[1736540956841,0.0026508,95005.0,95004.0,1.71847064]
[1736540957045,0.0026508,95005.0,95004.0,1.71647064]
[1736540957502,0.0026508,95005.0,95004.0,1.71747064]
[1736540957865,0.0026508,95005.0,95004.0,1.71847064]
[1736540958065,0.0026508,95005.0,95004.0,1.95087064]
[1736540958271,0.0026508,95005.0,95004.0,1.99817064]
[1736540958690,0.0026508,95005.0,95004.0,2.03103728]
[1736540958917,0.0026508,95005.0,95004.0,1.86847064]
[1736540959116,0.0026508,95005.0,95004.0,1.61417088]
[1736540961810,0.0026508,95005.0,95004.0,1.64704176]
[1736540963002,0.0026508,95005.0,95004.0,1.61417088]
[1736540969018,0.0026508,95005.0,95004.0,1.6470383]
[1736540970035,0.0026508,95005.0,95004.0,1.7970383]
[1736540970238,0.0026508,95005.0,95004.0,2.00133806]
[1736540970680,0.0026508,95005.0,95004.0,1.75033806]
[1736540970885,0.0026508,95005.0,95004.0,1.71747064]
[1736540971091,0.0026508,95005.0,95004.0,1.72147064]
[1736540971809,0.0026508,95005.0,95004.0,1.72047064]
[1736540971982,0.0036508,95005.0,95004.0,1.72847064]
[1736540972384,0.0036508,95005.0,95004.0,1.62417088]
[1736540972904,0.0026508,95005.0,95004.0,1.61217088]
[1736540973227,0.0026508,95005.0,95004.0,1.61717088]
[1736540973385,0.0026508,95005.0,95004.0,1.61517088]
[1736540973595,0.0026508,95005.0,95004.0,1.61217088]
[1736540973992,0.0026508,95005.0,95004.0,1.71847064]
[1736540974629,0.0026508,95005.0,95004.0,1.71647064]
[1736540974931,0.0026508,95005.0,95004.0,2.07596496]
[1736540975130,0.0026508,95005.0,95004.0,2.07396496]
[1736540975374,0.0026508,95005.0,95004.0,2.08185291]
[1736540975547,0.0026508,95005.0,95004.0,2.08485291]
[1736540976111,0.0026508,95005.0,95004.0,2.08285291]
[1736540976311,0.0026508,95005.0,95004.0,2.08485291]
[1736540976732,0.0026508,95005.0,95004.0,1.98485291]
[1736540976940,0.0026508,95005.0,95004.0,2.08485291]
[1736540986404,0.0001708,95018.0,95007.0,0.1]
[1736540986612,0.0001708,95018.0,95005.0,0.15]
[1736540986613,0.000997,95033.0,95021.0,0.2535]
[1736540986820,0.000997,95033.0,95032.0,0.1]
[1736540987073,0.09422379,95042.0,95033.0,0.25]
[1736540987294,0.09422379,95042.0,95036.0,0.360446]
[1736540987513,0.09422379,95042.0,95036.0,0.49560937]
[1736540987714,0.14150649,95044.0,95036.0,0.49560937]
[1736540987715,0.0001708,95044.0,95036.0,0.49560937]
[1736540987893,0.0001708,95044.0,95036.0,1.99560937]
[1736540989234,0.0001708,95044.0,95036.0,2.0165882]
[1736540989408,0.0001708,95044.0,95036.0,2.0175882]
[1736540989615,0.0001708,95044.0,95036.0,2.02825954]
[1736540989780,0.0001708,95044.0,95036.0,2.03514749]
[1736540989995,0.0001708,95044.0,95036.0,2.03914749]
[1736540990353,0.0001708,95044.0,95036.0,2.03714749]
[1736540990562,0.0001708,95044.0,95036.0,2.11924749]
[1736540991952,0.0001708,95044.0,95036.0,2.12424749]
[1736540996097,0.0001708,95044.0,95036.0,2.24724749]
[1736540997676,0.0001708,95044.0,95036.0,2.04214749]
[1736540998899,0.0001708,95044.0,95036.0,2.03714749]
[1736540999102,0.0001708,95044.0,95036.0,2.04014749]
[1736540999321,0.0001708,95044.0,95036.0,1.88814749]
[1736541000079,0.0788,95040.0,95036.0,1.82663371]
[1736541000257,0.045371,95037.0,95036.0,1.50788795]
[1736541000504,0.125171,95037.0,95036.0,0.00988795]
[1736541000707,0.15,95036.0,94986.0,0.1]
[1736541000913,0.0788,95011.0,94997.0,0.02113547]
[1736541001132,0.0788,95011.0,94998.0,0.12746661]
[1736541001542,0.0788,95011.0,95003.0,0.210519]
[1736541002368,0.0788,95011.0,95004.0,1.5]
[1736541002726,0.0788,95011.0,95004.0,1.710517]
[1736541003115,0.289302,95011.0,95004.0,1.5]
[1736541003872,0.0788,95011.0,95004.0,1.5]
[1736541005281,0.0788,95011.0,95000.0,0.210526]
[1736541005481,0.0788,95011.0,95005.0,0.210514]
[1736541005691,0.0788,95021.0,95010.0,1.710504]
[1736541006039,0.0788,95021.0,95010.0,0.210504]
[1736541006443,0.0788,95021.0,95016.0,1.5]
[1736541006850,0.210482,95020.0,95016.0,1.5]
[1736541008116,0.211482,95020.0,95016.0,1.5]
[1736541009012,0.001,95020.0,95016.0,1.5]
[1736541009422,0.0788,95021.0,95016.0,1.5]
[1736541009618,0.003,95020.0,95016.0,1.5]
[1736541009828,0.004,95020.0,95016.0,1.5]
[1736541010237,0.0475,95018.0,95016.0,1.5]
[1736541010446,0.210488,95017.0,95016.0,1.5]
[1736541010623,0.0475,95018.0,95016.0,1.5]
[1736541011609,0.001,95020.0,95016.0,1.5]
[1736541012318,0.001,95020.0,95017.0,0.31478776]
[1736541012446,0.001,95020.0,95018.0,0.06231648]
[1736541012663,0.09422379,95041.0,95019.0,1.60429976]
[1736541012864,0.09422379,95041.0,95035.0,0.210448]
[1736541013065,0.09522099,95041.0,95035.0,0.210448]
[1736541013432,0.09422379,95041.0,95035.0,0.210448]
[1736541013660,0.0001708,95044.0,95035.0,0.210448]
[1736541013867,0.0001708,95044.0,95036.0,0.25535179]
[1736541014086,0.005171,95037.0,95036.0,1.83219976]
[1736541014294,0.005171,95037.0,95036.0,2.05796361]
[1736541014504,0.000171,95037.0,95036.0,2.18096361]
[1736541016041,0.001171,95037.0,95036.0,2.18880391]
[1736541016330,0.000171,95037.0,95036.0,2.18880391]
[1736541016504,0.000171,95037.0,95036.0,2.19380391]
[1736541018681,0.000171,95037.0,95036.0,2.19680391]
[1736541019076,0.000171,95037.0,95036.0,2.19180391]
[1736541019286,0.000171,95037.0,95036.0,2.18880391]
[1736541019508,0.001171,95037.0,95036.0,2.19680391]
[1736541019657,0.001171,95037.0,95036.0,2.18880391]
[1736541019860,0.000171,95037.0,95036.0,2.18880391]
[1736541020093,0.001171,95037.0,95036.0,2.19780391]
[1736541020493,0.000171,95037.0,95036.0,2.18880391]
[1736541021012,0.000171,95037.0,95036.0,2.19280391]
[1736541021414,0.000171,95037.0,95036.0,2.20080391]
[1736541021601,0.0001708,95059.0,95036.0,2.19680391]
[1736541021807,0.0001708,95063.0,95059.0,0.435894]
[1736541021987,0.0763,95099.0,95071.0,0.210369]
[1736541022185,0.0772855,95099.0,95071.0,1.81466876]
[1736541023241,0.0009855,95099.0,95098.0,0.210309]
[1736541023451,0.0009855,95099.0,95073.0,0.1]
[1736541023666,0.0001706,95101.0,95075.0,0.21036]
[1736541023870,0.0001706,95101.0,95085.0,1.5]
[1736541024072,0.23479976,95100.0,95078.0,0.02155101]
[1736541024282,0.210307,95099.0,95078.0,0.02155101]
[1736541024494,0.210347,95081.0,95078.0,0.02155101]
[1736541024695,0.0809,95080.0,95062.0,0.210388]
[1736541024902,0.0840383,95080.0,95051.0,1.51025262]
[1736541025104,0.210351,95079.0,95075.0,0.001]
[1736541025328,0.0473,95078.0,95075.0,0.001]
[1736541025527,0.257653,95078.0,95075.0,0.001]
[1736541025728,0.210358,95076.0,95075.0,0.001]
[1736541026147,0.00357928,95076.0,95075.0,0.001]
[1736541026545,0.0473,95078.0,95066.0,0.210378]
[1736541026771,0.00314202,95076.0,95066.0,0.210378]
[1736541026946,0.00313123,95077.0,95066.0,0.210378]
[1736541027182,0.0473,95078.0,95066.0,0.210378]
[1736541027385,0.00812255,95076.0,95075.0,0.001]
[1736541027571,0.005,95076.0,95075.0,0.001]
[1736541027760,0.00857954,95076.0,95075.0,0.001]
[1736541027964,0.01357954,95076.0,95075.0,0.001]
[1736541028165,0.01357954,95076.0,95067.0,1.5]
[1736541028467,0.0473,95078.0,95068.0,0.210375]
[1736541028702,0.00312503,95075.0,95068.0,0.210375]
[1736541028916,0.003,95076.0,95068.0,0.210375]
[1736541029132,0.00314279,95074.0,95069.0,1.5]
[1736541029309,0.003137,95075.0,95069.0,1.5]
[1736541029524,0.21036,95075.0,95069.0,1.5]
[1736541029724,0.21037,95071.0,95069.0,1.5]
[1736541029938,0.210377,95067.0,95066.0,0.001]
[1736541030136,0.2104,95057.0,95046.0,0.210422]
[1736541030371,0.2104,95057.0,95047.0,1.5]
[1736541030566,0.08111162,95056.0,95047.0,1.5]
[1736541030792,0.078,95056.0,95047.0,1.5]
[1736541031536,0.078,95056.0,95048.0,0.210419]
[1736541031710,0.083,95056.0,95048.0,0.210419]
[1736541031909,0.086,95056.0,95048.0,0.210419]
[1736541032547,0.083,95056.0,95048.0,0.210419]
[1736541032767,0.086,95056.0,95047.0,1.501]
[1736541032990,0.210413,95051.0,95047.0,1.501]
[1736541033138,0.210413,95051.0,95047.0,1.5]
[1736541033344,0.21353755,95050.0,95047.0,1.5]
[1736541034059,0.21353755,95050.0,95047.0,1.501]
[1736541034275,0.210416,95050.0,95047.0,1.501]
[1736541034479,0.210416,95050.0,95047.0,0.001]
[1736541034677,0.00352502,95049.0,95047.0,0.001]
[1736541035052,0.210416,95050.0,95047.0,0.001]
[1736541035306,0.00352502,95048.0,95047.0,0.001]
[1736541035511,0.210419,95048.0,95047.0,0.001]
[1736541035659,0.21394543,95048.0,95047.0,0.001]
[1736541035864,0.28205177,95048.0,95047.0,0.001]
[1736541036100,0.210433,95042.0,95041.0,1.5]
[1736541036299,0.210422,95047.0,95041.0,1.5]
[1736541036460,0.00351273,95042.0,95041.0,1.5]
[1736541036717,0.210432,95043.0,95041.0,1.5]
[1736541036917,0.00351273,95042.0,95041.0,1.5]
[1736541038573,0.00551273,95042.0,95041.0,1.5]
[1736541038865,0.00926516,95042.0,95041.0,1.5]
[1736541039915,0.08706516,95042.0,95041.0,1.5]
[1736541046487,0.00926516,95042.0,95041.0,1.5]
[1736541047146,0.11356492,95042.0,95009.0,0.0774]
[1736541047361,0.11356492,95042.0,95009.0,0.10429976]
[1736541047362,0.21047,95026.0,95009.0,0.10429976]
[1736541047559,0.18269976,95041.0,95010.0,1.5]
[1736541047560,0.210485,95019.0,95010.0,1.5]
[1736541047794,0.18269976,95041.0,95010.0,1.5]
[1736541047795,0.210486,95018.0,95010.0,1.5]
[1736541048195,0.210484,95019.0,95010.0,1.710502]
[1736541048401,0.00345647,95017.0,95010.0,1.710502]
[1736541048609,0.0816,95021.0,95010.0,1.921005]
[1736541048827,0.0816,95021.0,94997.0,8.53e-05]
[1736541048828,0.15947406,95020.0,94997.0,8.53e-05]
[1736541049036,0.210519,95004.0,94997.0,8.53e-05]
[1736541049269,0.00772,95003.0,94997.0,8.53e-05]
[1736541049483,0.11542311,95003.0,94997.0,8.53e-05]
[1736541050034,0.00340335,95003.0,94997.0,8.53e-05]
[1736541050252,0.01112335,95003.0,94997.0,8.53e-05]
[1736541050668,0.08500335,95003.0,94997.0,8.53e-05]
[1736541050986,0.08800335,95003.0,94997.0,8.53e-05]
[1736541051347,0.09572335,95003.0,94997.0,8.53e-05]
[1736541051915,0.09831811,95003.0,94997.0,8.53e-05]
[1736541052111,0.11303811,95003.0,94997.0,8.53e-05]
[1736541053335,0.10531811,95003.0,94997.0,8.53e-05]
[1736541053560,0.01340335,95003.0,94999.0,0.210528]
[1736541053776,0.01340335,95003.0,95002.0,0.02115516]
[1736541053984,0.01,95003.0,95002.0,8.53e-05]
[1736541054408,0.007,95003.0,95002.0,8.53e-05]
[1736541054584,0.210486,95018.0,95003.0,0.210519]
[1736541054741,0.210486,95018.0,95006.0,0.21051]
[1736541054941,0.00344183,95017.0,95006.0,0.21051]
[1736541055188,0.00344183,95017.0,95010.0,0.210502]
[1736541055547,0.210487,95018.0,95006.0,0.21051]
[1736541055785,0.00344183,95016.0,95006.0,0.21051]
[1736541056007,0.210487,95018.0,95006.0,0.21051]
[1736541056213,0.00344325,95015.0,95010.0,0.210504]
[1736541056427,0.210479,95021.0,95011.0,1.5]
[1736541056815,0.210488,95018.0,95011.0,1.5]
[1736541057368,0.002,95017.0,95011.0,1.5]
[1736541057980,0.216488,95018.0,95011.0,1.5]
[1736541058387,0.00345532,95017.0,95011.0,1.5]
[1736541058798,0.00945532,95017.0,95011.0,1.501]
[1736541059135,0.00345532,95017.0,95011.0,1.5]
[1736541059597,0.00345532,95017.0,95011.0,1.501]
[1736541059908,0.00345532,95017.0,95011.0,1.5]
[1736541060264,0.210488,95017.0,95011.0,1.5]
[1736541060468,0.04661917,95016.0,95011.0,1.5]
[1736541060814,0.210516,95005.0,95002.0,8.53e-05]
[1736541061188,0.210519,95003.0,95002.0,8.53e-05]
[1736541061846,0.210516,95005.0,95002.0,8.53e-05]
[1736541062060,0.00343704,95003.0,95002.0,8.53e-05]
[1736541062270,0.210516,95005.0,95002.0,8.53e-05]
[1736541062448,0.0421023,95004.0,95002.0,8.53e-05]
[1736541062854,0.210516,95005.0,95002.0,8.53e-05]
[1736541063401,0.360519,95003.0,95002.0,8.53e-05]
[1736541063553,0.46481876,95003.0,95002.0,8.53e-05]
[1736541063767,0.59125003,95003.0,95002.0,0.0010853]
[1736541064120,0.69554979,95003.0,95002.0,0.0010853]
[1736541064301,0.69554979,95003.0,95002.0,8.53e-05]
[1736541064446,0.69854979,95003.0,95002.0,8.53e-05]
[1736541064980,0.69554979,95003.0,95002.0,0.0010853]
[1736541065181,0.59125003,95003.0,95002.0,0.0010853]
[1736541065394,0.59625003,95003.0,95002.0,8.53e-05]
[1736541065591,0.60525003,95003.0,95002.0,0.0010853]
[1736541065969,0.59625003,95003.0,95002.0,8.53e-05]
[1736541066151,0.70054979,95003.0,95002.0,8.53e-05]
[1736541066355,0.1,94988.0,94987.0,8.53e-05]
[1736541066559,0.1,94988.0,94972.0,8.53e-05]
[1736541066560,0.1,94975.0,94972.0,8.53e-05]
[1736541066758,0.383586,94973.0,94972.0,8.53e-05]
[1736541066991,0.48788576,94973.0,94972.0,8.53e-05]
[1736541067198,0.49125786,94973.0,94972.0,8.53e-05]
[1736541067938,0.3869581,94973.0,94972.0,8.53e-05]
[1736541068090,0.2216781,94973.0,94972.0,8.53e-05]
[1736541068302,0.66366137,94973.0,94972.0,8.53e-05]
[1736541068529,0.86958989,94973.0,94972.0,8.53e-05]
[1736541068703,0.87858989,94973.0,94972.0,8.53e-05]
[1736541069510,0.86958989,94973.0,94972.0,8.53e-05]
[1736541069719,0.87258989,94973.0,94972.0,8.53e-05]
[1736541070328,0.86957333,94973.0,94972.0,8.53e-05]
[1736541070795,0.87657333,94973.0,94972.0,8.53e-05]
[1736541070982,0.88557333,94973.0,94972.0,8.53e-05]
[1736541071281,0.83496137,94973.0,94972.0,8.53e-05]
[1736541071580,0.93157333,94973.0,94972.0,8.53e-05]
[1736541071779,1.28504073,94973.0,94972.0,8.53e-05]
[1736541072772,1.27604073,94973.0,94972.0,8.53e-05]
[1736541072980,1.25187333,94973.0,94972.0,8.53e-05]
[1736541073356,1.27604073,94973.0,94972.0,8.53e-05]
[1736541073570,0.583601,94966.0,94965.0,8.53e-05]
[1736541073768,0.8193556,94966.0,94965.0,8.53e-05]
[1736541073979,0.8227064,94966.0,94965.0,8.53e-05]
[1736541074183,0.84638364,94966.0,94965.0,8.53e-05]
[1736541075707,0.86438364,94966.0,94965.0,8.53e-05]
[1736541075906,1.18468364,94966.0,94965.0,8.53e-05]
[1736541076115,1.26718364,94966.0,94965.0,3e-07]
[1736541076315,1.27618364,94966.0,94965.0,3e-07]
[1736541077140,0.360646,94946.0,94928.0,7e-05]
[1736541077337,0.56910191,94946.0,94928.0,7e-05]
[1736541077543,0.57299386,94946.0,94928.0,7e-05]
[1736541079437,0.38753795,94946.0,94928.0,7e-05]
[1736541079638,0.39525795,94946.0,94928.0,7e-05]
[1736541079844,0.40425795,94946.0,94937.0,1.5]
[1736541080665,0.40565392,94946.0,94937.0,1.5]
[1736541080865,0.36453795,94946.0,94937.0,1.5]
[1736541081088,0.00389195,94946.0,94939.0,0.0763]
[1736541081505,0.00386984,94946.0,94939.0,0.0763]
[1736541081712,0.210642,94948.0,94939.0,0.0763]
[1736541081883,0.00786984,94946.0,94939.0,0.0763]
[1736541082088,0.01686984,94946.0,94937.0,1.5]
[1736541082631,0.00386984,94946.0,94937.0,1.5]
[1736541082836,0.01286984,94946.0,94937.0,1.5]
[1736541083396,0.01086984,94946.0,94930.0,8.53e-05]
[1736541083746,0.09170458,94946.0,94930.0,8.53e-05]
[1736541083916,0.10070458,94946.0,94930.0,8.53e-05]
[1736541084962,0.04286984,94946.0,94930.0,0.2107653]
[1736541085421,0.00786984,94946.0,94933.0,0.210673]
[1736541085622,0.01686984,94946.0,94939.0,0.21066]
[1736541085828,0.02458984,94946.0,94940.0,0.0763853]
[1736541086039,0.02458984,94946.0,94941.0,1.5]
[1736541086237,0.02458984,94946.0,94942.0,0.2107383]
[1736541086238,0.01686984,94946.0,94942.0,0.2107383]
[1736541086437,0.00772,94952.0,94943.0,0.210651]
[1736541086866,0.013,94946.0,94943.0,0.210651]
[1736541087246,0.004,94946.0,94943.0,0.210651]
[1736541087828,0.004,94946.0,94944.0,1.5]
[1736541088272,0.004,94946.0,94945.0,0.06840335]
[1736541088474,0.004,94946.0,94945.0,0.0468853]
[1736541088879,0.15772,94967.0,94958.0,0.210618]
[1736541089035,0.15772,94967.0,94960.0,0.210614]
[1736541089251,0.00335226,94966.0,94950.0,0.0794]
[1736541089450,0.210613,94961.0,94950.0,0.290035]
[1736541089664,0.00388946,94965.0,94950.0,0.290035]
[1736541089879,0.00333382,94960.0,94953.0,0.210628]
[1736541090101,0.210622,94957.0,94950.0,0.0794]
[1736541090238,0.00333382,94959.0,94950.0,0.0794]
[1736541090644,0.210619,94958.0,94950.0,0.0794]
[1736541090844,0.2316809,94958.0,94950.0,0.0794]
[1736541092055,0.210616,94960.0,94950.0,0.0794]
[1736541092288,0.00333382,94957.0,94950.0,0.0794]
[1736541092472,0.217616,94960.0,94950.0,0.0794]
[1736541092672,0.00333382,94956.0,94950.0,0.0794]
[1736541092875,0.008,94958.0,94950.0,0.0794]
[1736541093000,0.00333666,94955.0,94950.0,0.0794]
[1736541093201,0.210616,94960.0,94950.0,0.0794]
[1736541093530,0.001,94957.0,94951.0,0.210634]
[1736541093708,0.006,94957.0,94954.0,0.210627]
[1736541093871,0.001,94957.0,94954.0,0.421254]
[1736541094740,0.001,94957.0,94956.0,0.210623]
[1736541094880,0.210595,94969.0,94956.0,0.210623]
[1736541095082,0.0033472,94968.0,94956.0,0.210623]
[1736541095346,0.005,94955.0,94954.0,0.210627]
[1736541095683,0.210607,94964.0,94954.0,0.210627]
[1736541095890,0.00334781,94963.0,94954.0,0.210627]
[1736541096111,0.005,94957.0,94950.0,0.0794]
[1736541096321,0.210612,94961.0,94950.0,0.0794]
[1736541096484,0.210628,94954.0,94951.0,1.5]